Cogmind - Beta 14 @@@ ROGUE MODE // 2025.03.07 @ 17:32:54 Player: mix Result: Destroyed by S-10 Pest with Light Assault Rifle Performance ------------- Evolutions (0) 0 Regions Visited (3) 600 Robots Destroyed (17) 85 Value Destroyed (572) 572 Prototype IDs (0) 0 Alien Tech Used (0) 0 Bonus (0) 0 TOTAL SCORE: 1257 Bonus ------- None Cogmind --------- Core Integrity 0/250 Matter 300/300 Energy 200/200 System Corruption 0% Temperature Cool (0) Movement Rolling (120) Ox1 Location -10/Subcaves Parts ------- > --- POWER (1) -------- Subdweller Power Source > --- PROPULSION (2) --- Subdweller Monowheel > --- UTILITY (2) ------ Medium Storage Unit > --- WEAPON (2) ------- Subdweller Laser Subdweller Beam Cannon > --- INVENTORY (10) --- Arachnoskeleton Subdweller Beam Cannon Flamer Peak State ------------ > --- POWER ------------ Subdweller Power Source > --- PROPULSION ------- Light Treads Light Treads > --- UTILITY ---------- Scrap Shield > --- WEAPON ----------- Subdweller Laser Battle Cannon > --- INVENTORY -------- Medium Storage Unit Subdweller Beam Cannon Light Assault Rifle Flamer Scrap Shield Fragment [Rating: 12] Favorites ----------- Power Light Ion Engine Engine Light Ion Engine Propulsion Light Treads Treads Light Treads Leg Aluminum Leg Wheel Subdweller Monowheel Utility Scrap Shield Device Subdweller Optics Storage Medium Storage Unit Protection Scrap Shield Weapon Subdweller Beam Cannon Energy Gun Medium Laser Energy Cannon Subdweller Beam Cannon Ballistic Gun Light Assault Rifle Ballistic Cannon Battle Cannon Build | -11 -10 -10 -10 ------- Run | Yrd Mat Min Sub Slots Evolved . | . . . . Power . | . . . . Propulsion . | . . . . Utility . | . . . . Weapon . | . . . . Parts Attached 21 | 6 1 . 14 Power 4 | 1 . . 3 Engine 4 | 1 . . 3 Core . | . . . . Reactor . | . . . . Propulsion 6 | 2 . . 4 Treads 2 | . . . 2 Leg 2 | 2 . . . Wheel 2 | . . . 2 Hover . | . . . . Flight . | . . . . Utility 5 | 1 1 . 3 Device 1 | . . . 1 Storage 3 | 1 1 . 1 Processor . | . . . . Hackware . | . . . . Protection 1 | . . . 1 Artifact . | . . . . Weapon 6 | 2 . . 4 Energy Gun 2 | 1 . . 1 Energy Cannon 2 | . . . 2 Ballistic Gun 1 | 1 . . . Ballistic Cannon 1 | . . . 1 Launcher . | . . . . Special Weapon . | . . . . Impact Weapon . | . . . . Slashing Weapon . | . . . . Piercing Weapon . | . . . . Special Melee Weapon . | . . . . Unidentified Prototypes . | . . . . Parts Lost 4 | . . . 4 Power . | . . . . Propulsion 2 | . . . 2 Utility 1 | . . . 1 Weapon 1 | . . . 1 Highest Loss Streak 4 | . . . 4 To Critical Strikes . | . . . . Average Slot Usage (%) 82 | . 85 85 81 Engine 11 | . 14 14 10 Treads 21 | . . . 24 Leg 4 | . 28 28 . Device 1 | . . . 1 Storage 4 | . 14 14 3 Protection 9 | . . . 10 Energy Gun 14 | . 14 14 14 Energy Cannon 11 | . . . 13 Ballistic Gun 2 | . 14 14 . Peak Build Rating 12 | 6 7 6 12 Average Rating 9 | 4 6 6 10 On Entrance 4 | . 6 6 6 Naked Turns . | . . . . Heaviest Build 33 | 11 16 16 33 Greatest Support 40 | 20 20 20 40 Greatest Overweight (x) 8 | . . . 8 Average Overweight (x) . | . . . . Largest Inventory Capacity 10 | 8 10 10 10 Average Capacity 6 | 6 8 10 6 Most Carried 6 | 4 3 2 6 Average Carried 4 | 1 2 2 4 Final Capacity 10 | 8 10 10 10 Final Carried 5 | 2 2 2 5 Class Distribution -------------------- 52% | Mutant 30% | Subdweller-Mutant 16% | Scavenger-Mutant Dominant Class ---------------- Mutant | -10/Materials Mutant | -10/Mines Mutant | -10/Subcaves Resources | -11 -10 -10 -10 ----------- Run | Yrd Mat Min Sub Matter Collected 446 | 244 35 2 165 Remotely . | . . . . Salvage Created 695 | 60 50 30 555 Parts 38 | 2 3 2 31 Haulers Intercepted 1 | . 1 . . Recyclers Shooed 1 | 1 . . . Parts Field Recycled . | . . . . Retrieved Matter . | . . . . Parts Self-Destructed 7 | . . . 7 Prevented . | . . . . Kills | -11 -10 -10 -10 ------- Run | Yrd Mat Min Sub Combat Hostiles Destroyed 15 | . . 1 14 Guns 6 | . . 1 5 Cannons 8 | . . . 8 Classes Destroyed 5 | 1 1 1 2 Hauler 1 | . 1 . . Recycler 1 | 1 . . . Swarmer 1 | . . . 1 Grunt 1 | . . 1 . Subdweller 13 | . . . 13 Best Kill Streak 3 | 1 1 1 3 Combat Bots Only 3 | . . 1 3 Max Kills in Single Turn 1 | 1 1 1 1 Gunslinging . | . . . . Exploded . | . . . . Melee . | . . . . Uniques/NPCs Destroyed . | . . . . Combat | -11 -10 -10 -10 -------- Run | Yrd Mat Min Sub Hostile Shots Fired 74 | . . 5 69 Missed 19 | . . 2 17 Damage Taken 1214 | . . 36 1178 Core 250 | . . . 250 Absorbed by Shields . | . . . . Core Remaining (%) 100 | 100 . . . Volleys Fired 56 | 5 6 2 43 Largest 2 | 2 2 2 2 Hottest 140 | 70 70 70 140 Shots Fired 105 | 8 12 4 81 Gun 72 | 8 12 4 48 Cannon 33 | . . . 33 Launcher . | . . . . Special . | . . . . Kinetic 24 | 3 6 2 13 Thermal 81 | 5 6 2 68 Explosive . | . . . . Electromagnetic . | . . . . Robot Hit Streak 25 | 7 7 2 25 Robot Miss Streak 2 | 1 1 2 2 Penetration Max . | . . . . Secondary Targets 1 | . . . 1 Max Gunslinging Chain 1 | . . . 1 Shots Hit Robots 85 | 7 10 2 66 Core Hits 29 | 2 2 2 23 Critical Kills . | . . . . Critical Parts Destroyed . | . . . . Critical Strikes 5 | . 2 . 3 Burn 5 | . 2 . 3 Melee Attacks . | . . . . Impact . | . . . . Slashing . | . . . . Piercing . | . . . . Sneak Attacks . | . . . . Combat Hostiles . | . . . . Follow-up Attacks . | . . . . Damage Inflicted 1457 | 69 101 21 1266 Guns 816 | 69 101 21 625 Cannons 641 | . . . 641 Explosions . | . . . . Melee . | . . . . Ramming . | . . . . Kinetic 289 | 21 51 8 209 Thermal 1168 | 48 50 13 1057 Explosive . | . . . . Electromagnetic . | . . . . Impact . | . . . . Slashing . | . . . . Piercing . | . . . . Highest Corruption . | . . . . Average Corruption . | . . . . Corruption Purged . | . . . . Corruption Blocked . | . . . . Overload Shots . | . . . . Overflow Damage . | . . . . Projectiles . | . . . . Explosions . | . . . . Melee . | . . . . Knockbacks 4 | . . . 4 Impact . | . . . . Kinetic 4 | . . . 4 Secondary . | . . . . Self-Inflicted Damage . | . . . . Shots . | . . . . Rammed . | . . . . Targets Rammed . | . . . . Kicked . | . . . . Crushed . | . . . . Highest Temperature 138 | 50 50 46 138 Average Temperature 28 | 26 23 24 30 Received Heat Transfer 237 | . . 21 216 Siege Activations . | . . . . Robots Corrupted . | . . . . Combat Hostiles . | . . . . Parts Fried . | . . . . Impact Corruptions . | . . . . Robots Melted 1 | . . . 1 Combat Hostiles 1 | . . . 1 Parts Melted 8 | . 1 . 7 Heat Transferred 2448 | 148 296 37 1967 Parts Sabotaged . | . . . . Parts Stolen . | . . . . Parts Stripped . | . . . . Power Chain Reactions . | . . . . Alert | -11 -10 -10 -10 ------- Run | Yrd Mat Min Sub Peak Influence 50 | 5 39 50 . Initial 15 | . 3 15 . Average 26 | 2 15 45 . Maximum Alert Level . | . . . . Low Security (%) 100 | 100 100 100 . Level 1 . | . . . . Level 2 . | . . . . Level 3 . | . . . . Level 4 . | . . . . Level 5 . | . . . . High Security . | . . . . Max Security . | . . . . Squads Dispatched . | . . . . Investigation . | . . . . Extermination . | . . . . Reinforcement . | . . . . Assault . | . . . . Garrison . | . . . . Intercept . | . . . . Searches Triggered . | . . . . Construction Impeded . | . . . . Haulers Reinforced . | . . . . Active Scanning Responses . | . . . . Cargo Convoy Interrupts . | . . . . Stealth | -11 -10 -10 -10 --------- Run | Yrd Mat Min Sub Distress Signals . | . . . . Communications Jammed . | . . . . Distress Signals . | . . . . Times Spotted 17 | . 1 2 14 Peak Tracking Total 4 | . 1 2 4 Tactical Retreats 2 | . . 1 1 Traps | -11 -10 -10 -10 ------- Run | Yrd Mat Min Sub Traps Triggered . | . . . . Indirectly . | . . . . Trap Hack Attempts . | . . . . Triggered . | . . . . Disarmed . | . . . . Reprogrammed . | . . . . Reused . | . . . . Traps Extracted . | . . . . Installed . | . . . . Triggered . | . . . . Machines | -11 -10 -10 -10 ---------- Run | Yrd Mat Min Sub Machines Disabled . | . . . . Max in Single Turn . | . . . . Machines Repaired . | . . . . Machines Dismantled . | . . . . Machines Sabotaged . | . . . . Overloaded Fab Kills . | . . . . Hacking | -11 -10 -10 -10 --------- Run | Yrd Mat Min Sub Machines Accessed 2 | . 1 . 1 Terminals 1 | . 1 . . Fabricators . | . . . . Repair Stations . | . . . . Recycling Units . | . . . . Scanalyzers . | . . . . Garrison Access . | . . . . Total Hacks 5 | . 2 . 3 Successful 4 | . 1 . 3 Failed 1 | . 1 . . Catastrophic . | . . . . Database Lockouts . | . . . . Manual 2 | . 2 . . Terminals 2 | . 2 . . Fabricators . | . . . . Repair Stations . | . . . . Recycling Units . | . . . . Scanalyzers . | . . . . Garrison Access . | . . . . Terminal Hacks 3 | . . . 3 Record 3 | . . . 3 Fabricator Hacks . | . . . . Repair Station Hacks . | . . . . Recycling Unit Hacks . | . . . . Scanalyzer . | . . . . Garrison Access Hacks . | . . . . Unauthorized Hacks 1 | . 1 . . Terminals 1 | . 1 . . Botnet 1 | . 1 . . Fabricators . | . . . . Repair Stations . | . . . . Recycling Units . | . . . . Scanalyzers . | . . . . Garrison Access . | . . . . Data Cores Recovered . | . . . . Used . | . . . . Hacking Detections 1 | . 1 . . Full Trace Events . | . . . . Feedback Events . | . . . . Feedback Blocked . | . . . . Robot Schematics Acquired . | . . . . Robots Built . | . . . . Authchips . | . . . . Time . | . . . . Total Robot Build Rating . | . . . . Part Schematics Acquired . | . . . . Parts Built . | . . . . Authchips . | . . . . Time . | . . . . Total Part Build Rating . | . . . . Parts Repaired . | . . . . Time . | . . . . Parts Recycled . | . . . . Recycled Matter . | . . . . Retrieved Matter . | . . . . Retrieved Components . | . . . . Parts Scanalyzed . | . . . . Part Schematics Acquired . | . . . . Parts Damaged . | . . . . Bothacking | -11 -10 -10 -10 ------------ Run | Yrd Mat Min Sub Used RIF Installer . | . . . . Robots Hacked . | . . . . Non-combat . | . . . . Combat . | . . . . Robot Hacks Applied . | . . . . Relay Couplers Released . | . . . . Fabnet Peak Effective % . | . . . . Robots Rewired . | . . . . Allies Hacked . | . . . . Hacks Repelled . | . . . . Allies | -11 -10 -10 -10 -------- Run | Yrd Mat Min Sub Total Allies . | . . . . Largest Group . | . . . . Highest-Rated Group . | . . . . Highest-Rated Ally . | . . . . Total Orders . | . . . . Ally Attacks . | . . . . Total Damage . | . . . . Kills . | . . . . Allies Corrupted . | . . . . Allies Melted . | . . . . Intel | -11 -10 -10 -10 ------- Run | Yrd Mat Min Sub Robot Analysis Total . | . . . . Derelict Logs Recovered 2 | . . 1 1 Drone Launches . | . . . . Drone Recoveries . | . . . . Exploration | -11 -10 -10 -10 ------------- Run | Yrd Mat Min Sub Turns Passed 2805 | 79 167 209 2350 Spaces Moved 1629 | 51 124 89 1365 Core 24 | 15 . . 9 Treads 1175 | . . . 1175 Legs 276 | 36 124 89 27 Wheels 154 | . . . 154 Hover . | . . . . Flight . | . . . . Fastest Speed 50 | 50 120 120 110 Average Speed 149 | 99 120 120 156 Slowest Speed 450 | 120 120 120 450 Overloaded Moves . | . . . . Propulsion Burnouts . | . . . . Robots Hopped . | . . . . Cave-ins Triggered . | . . . . Exploration Rate (%) 36 | 3 24 38 79 Regions Visited 3 Branch Regions 2 Pre-discovered Areas 2 | . . 1 1 Known Exits Taken . | . . . . Unknown Exits Taken 3 | 1 1 1 . Scrap Searched 2 | . . . 2 Spaces Dug . | . . . . Terrain Destroyed 4 | . . . 4 Melee . | . . . . Projectile 4 | . . . 4 AOE . | . . . . Terrain Rammed . | . . . . Walls Destroyed . | . . . . Machines Disabled . | . . . . Actions | -11 -10 -10 -10 --------- Run | Yrd Mat Min Sub Total 1896 | 73 132 187 1504 Wait 149 | . . 97 52 Move 1626 | 50 123 88 1365 Hop . | . . . . Pick Up 25 | 10 1 . 14 Fast Attach . | . . . . Attach 15 | 6 1 . 8 Detach 1 | . . . 1 Swap 6 | . . . 6 Drop 15 | 2 1 . 12 Fire 56 | 5 6 2 43 Melee . | . . . . Ram . | . . . . Kick . | . . . . Crush . | . . . . Escape Stasis . | . . . . Rewire . | . . . . Trap . | . . . . Miscellaneous 3 | . . . 3 Route ------- -11/Scrapyard -10/Materials -10/Mines (discovered 2 exits: [*Mat] / *Sub) -10/Subcaves (discovered 3 exits: *Mat x2 / Rec) History --------- Turn | Location | Event 10 | -11/Scrapyard | Discovered new exit (range 15) 80 | -11/Scrapyard | Entered Materials 205 | -10/Materials | Discovered new exit (range 14) 247 | -10/Materials | Entered Mines 253 | -10/Mines | Learned Materials interactive machine intel 298 | -10/Mines | Met a Derelict bent on vengeance 303 | -10/Mines | Build established: Mutant 398 | -10/Mines | Learned location of Storage (-8) 401 | -10/Mines | Discovered new exit (range 4) 443 | -10/Mines | Discovered new exit (range 5) 456 | -10/Mines | Entered Subcaves 777 | -10/Subcaves | Core integrity fell below 50% 1103 | -10/Subcaves | Learned Materials stockpile data 1104 | -10/Subcaves | A swath of the cavern ceiling suddenly collapsed 1448 | -10/Subcaves | Discovered new exit (range 10) 1462 | -10/Subcaves | Shifting Twisted Machinery released Battle Cannon 1474 | -10/Subcaves | Shifting Twisted Machinery released Battle Cannon 1702 | -10/Subcaves | Visited Clippyterm 1707 | -10/Subcaves | Identified exit to Materials 1707 | -10/Subcaves | Identified exit to Recycling 2181 | -10/Subcaves | Build established: Subdweller-Mutant 2428 | -10/Subcaves | Learned location of Zion (-6) 2428 | -10/Subcaves | Met a Zionite searching for "candidates" 2538 | -10/Subcaves | A Subdweller sparked back to life 2538 | -10/Subcaves | A Subdweller sparked back to life 2538 | -10/Subcaves | A Subdweller sparked back to life 2562 | -10/Subcaves | Core integrity fell below 20% 2596 | -10/Subcaves | Found Prototype Leg 2601 | -10/Subcaves | Lost 4 parts (2n1u1w) 2806 | -10/Subcaves | Destroyed by S-10 Pest with Light Assault Rifle Last Messages --------------- PW-T60(R) affixes Scrap Shield Fragment to Scrap Shield. Disposable Heat Sink melted. Sub. Power Source melted. Sub. Monowheel melted. 1C-H6W(R) destroyed. PW-T60(R) affixes Scrap Shield Fragment to Scrap Shield. Lgt. Treads destroyed. PW-T60(R) destroyed. Acquired Sub. Beam Cannon. Acquired 25 matter. Acquired Sub. Monowheel. Acquired 10 matter. Dropped Sub. Monowheel. Dropped Lgt. Assault Rifle. Acquired Prototype Leg. Acquired 10 matter. Acquired Sub. Monowheel. Acquired 10 matter. Map ----- +----------------------------------------------------+ | ?????## % "####?????????????????????????????????? | | ?????##[ % " #?????????????????????????????????? | | ?????# # " "#?????????????????????????????????? | | ????## ## % #?????????????????????????????????? | | ???## # " #?????????????????????????????????? | | #### ##??????????>??????????????????????? | | # "" ###??????????????????????????????? | | ## #??????????????????????????????? | | # # ## ### #??????????????????????????????? | | #### # #? #??????? ??????????????????????? | | ##### # #? #?????? ?????????????????????? | | ## ## ##?# ##?????? ?????????????????????? | | ##?## #?????? ?????????????????????? | | ##? #####?? ?????????????????????? | | # #?# # ##? ??????????????????????? | | # ### #? ??????????????????????? | | # ## ## #? ??????????????????????? | | # ## ## #? ??????????????????????# | | ## #### # ???????????? ??????????# | | ###### ## #??# ?????????? ????????? | | #????# ########??# %????????? ??!#??????# | | ##??### #????????# &???????# ? ????? | | ????# #?????????# #?????? ??? | | ???## ##??###????# #????? #???? | | ???# # #??# #????# s##?## #????? | | ???## ######## ##???## @## ?????????? ? | | ???# ##### ####?# #????????????????? ?? | | ???# ## # #### #????????????????????? | | ##### #?## #????????????????????? | | ### % % #??# #????????????????????? | | ## ##### #????????????????????? | | ### ### ## #????????????????????? | | ## ## ### ## ##???????????????????? | | ############ ## #???????????????????? | | ???????????## ## ## ##??????????????????? | | ????????????# #### ####???????????????? | | ????????????# ##??# #???????????????? | | ????????????## ##???## #???????????????? | | ?????????????#######?????## ##???????????????? | | ??????????????????????????#######????????????????? | | ?????????????????????????????????????????????????? | | ?????????????????????????????????????????????????? | | ?????????????????????????????????????????????????? | | ?????????????????????????????????????????????????? | | ?????????????????????????????????????????????????? | | ?????????????????????????????????????????????????? | | ?????????????????????????????????????????????????? | | ?????????????????????????????????????????????????? | | ?????????????????????????????????????????????????? | | ?????????????????????????????????????????????????? | +----------------------------------------------------+ Best States ------------- Heat Dissipation 25 Energy Generation 15 Energy Capacity 200 Matter Stores 300 Matter Capacity 300 Sight Range 21 Terrain Scan Density 10 Armor Coverage 800 Evasion (%) 55 Recoil Reduction 2 Item Schematics ----------------- None Robot Schematics ------------------ None Fabricated ------------ Nothing Alien Tech Used ----------------- None Achievements -------------- None Challenges ------------ None Game ------ Seed AutogunHoverExtrapolator Manual? 0 Play Time 00:14:59 Cumulative 63.5 hours Start 2025.03.07 @ 16:32:54 End 2025.03.07 @ 17:32:54 Sessions 2 Manual Loads 0 Difficulty Rogue Special Mode None Game No. 91 Rogue 77 Adventurer 14 Explorer 0 Win Type - Total 0 Types 0/0/0/0/0/0/0/0/0 Lore% 22 Gallery% 43 Achievement% 41 Wizard Run 0 Options --------- Layout 1 ASCII 0 Keyboard 0 Movement Mouse Keybinds 0 Fullscreen 1 Font 24/Smallcaps Map View 50x35 Zoom Use 0% Tactical HUD 0 Map Filters NONE Filters NONE Steam 1 RUN: d4a28500-b65a-40cf-8fb8-5318ff7fe2c0